Cogmind - Beta 15 @@@ ROGUE MODE // 2025.09.29 @ 02:53:02 Player: shapeshifter Result: Destroyed by G-67 Veteran with Field Laser Performance ------------- Evolutions (6) 3000 Regions Visited (21) 4200 Robots Destroyed (251) 1255 Value Destroyed (12297) 12297 Prototype IDs (44) 880 Alien Tech Used (0) 0 Bonus (6702) 6702 TOTAL SCORE: 28334 Bonus ------- High Alert Combat Kills 1142 Follower Combat Kills 2810 Entered Garrisons 800 Used RIF Installer 2000 Aligned with FarCom 300 Friendly Fire -350 Cogmind --------- Core Integrity 0/1150 Matter 300/300 Energy 100/100 System Corruption 42% Temperature Cool (0) Movement Core (50) Location -4/Garrison Parts ------- > --- POWER (2) -------- (None) > --- PROPULSION (4) --- (None) > --- UTILITY (10) ----- (None) > --- WEAPON (3) ------- (None) > --- INVENTORY (5) ---- Advanced Gravity Neutralizer Relay Coupler [Sentry] (22) Relay Coupler [Demolisher] (36) Improved Trap Extractor (2/6 Gamma Bomb) Supersonic Drone Bay (1/1) Peak State ------------ > --- POWER ------------ Light Antimatter Reactor Light Antimatter Reactor > --- PROPULSION ------- Improved Heavy Treads Improved Heavy Treads > --- UTILITY ---------- Advanced Cryofiber Web Advanced Heat Sink Advanced Heat Sink Huge Storage Unit Advanced Visual Processing Unit Transmission Jammer Layered Medium Armor Plating Medium Regenerative Plating Improved Focal Shield Advanced EM Shield > --- WEAPON ----------- Enhanced Quantum Rifle Enhanced Quantum Rifle Precision Grenade Launcher > --- INVENTORY -------- Light Angular Momentum Engine Improved Heavy Treads Advanced Heat Sink Compact Battery High-capacity Matter Pod Advanced Gravity Neutralizer Graphene Brace Advanced EM Shield Relay Coupler [Demolisher] Relay Coupler [Hunter] Relay Coupler [Proto] Relay Coupler [Proto] Relay Coupler [Proto] Improved Trap Extractor Supersonic Drone Bay Gamma Rifle Long-range Proton Cannon Long-range Proton Cannon Long-range Proton Cannon Guided Plasma Cannon Firepult Remote Datajack Improved Remote Datajack [Rating: 132] Favorites ----------- Power Light Angular Momentum Engine Engine Light Angular Momentum Engine Power Core Light Nuclear Core Reactor Light Antimatter Reactor Propulsion Armored Wheel Treads Improved Heavy Treads Leg Carbon-fiber Leg Wheel Armored Wheel Flight Unit Improved VTOL Module Utility Advanced Heat Sink Device Advanced Heat Sink Storage Huge Storage Unit Processor Improved Salvage Targeting Computer Hackware Relay Coupler [Grunt] Protection Improved Utility Shielding Weapon Heavy Plasma Cannon Energy Gun Enhanced Quantum Rifle Energy Cannon Heavy Plasma Cannon Ballistic Gun Light Assault Rifle Ballistic Cannon Gauss Cannon Launcher Precision Grenade Launcher Special Weapon Remote Datajack Build | -11 -10 -10 -10 -9 -8 -8 -8 -8 -7 -7 -6 -6 -6 -5 -5 -5 -5 -4 -4 -4 -4 ------- Run | Yrd Mat Min Exi Min Mat Gar Mat Sto Fac Gar Fac Was Fac Fac Gar Fac Ext Fac Was Fac Gar Slots Evolved 12 | . . . . . 4 . . . 2 . 2 . . 2 . . . 2 . . . Power 1 | . . . . . . . . . . . 1 . . . . . . . . . . Propulsion 2 | . . . . . 1 . . . . . . . . 1 . . . . . . . Utility 8 | . . . . . 3 . . . 1 . 1 . . 1 . . . 2 . . . Weapon 1 | . . . . . . . . . 1 . . . . . . . . . . . . Parts Attached 274 | 7 8 6 1 4 25 22 5 13 9 31 1 4 21 4 28 5 23 20 2 10 25 Power 39 | 1 1 1 . 1 1 1 1 1 1 2 . 1 3 2 4 . 8 4 . . 6 Engine 19 | 1 1 1 . 1 1 . 1 1 . 1 . . 2 . 3 . 6 . . . . Core 11 | . . . . . . 1 . . 1 1 . 1 1 2 . . 2 . . . 2 Reactor 9 | . . . . . . . . . . . . . . . 1 . . 4 . . 4 Propulsion 49 | 2 2 3 . . 6 2 . 2 1 11 . 1 2 2 2 . 2 2 2 1 6 Treads 21 | 2 . 1 . . 2 . . . . 2 . 1 . 2 2 . 2 2 2 1 2 Leg 10 | . . . . . . . . . . 6 . . . . . . . . . . 4 Wheel 16 | . 2 2 . . 4 2 . 1 1 3 . . 1 . . . . . . . . Hover . | . . . . . . . . . . . . . . . . . . . . . . Flight 2 | . . . . . . . . 1 . . . . 1 . . . . . . . . Utility 123 | 2 2 1 1 1 11 11 3 5 3 11 1 2 13 . 16 4 10 10 . 5 11 Device 42 | 1 . . . 1 2 . 1 1 2 3 . 1 4 . 7 1 4 5 . 3 6 Storage 7 | 1 1 . 1 . . 1 . . . . . . . . 1 . 1 . . . 1 Processor 13 | . . . . . 4 1 . . . 1 . . 2 . . 1 1 1 . 1 1 Hackware 28 | . . . . . . 3 2 1 . 6 1 . 4 . 6 1 1 1 . 1 1 Protection 33 | . 1 1 . . 5 6 . 3 1 1 . 1 3 . 2 1 3 3 . . 2 Artifact . | . . . . . . . . . . . . . . . . . . . . . . Weapon 63 | 2 3 1 . 2 7 8 1 5 4 7 . . 3 . 6 1 3 4 . 4 2 Energy Gun 18 | . 2 1 . 1 1 . 1 3 3 . . . 1 . . . 2 1 . 1 1 Energy Cannon 16 | . . . . . 1 2 . . . 2 . . 1 . 4 . 1 3 . 2 . Ballistic Gun 15 | 2 1 . . . 5 4 . . . 1 . . . . 1 . . . . . 1 Ballistic Cannon 4 | . . . . 1 . . . . 1 2 . . . . . . . . . . . Launcher 4 | . . . . . . 1 . 2 . 1 . . . . . . . . . . . Special Weapon 6 | . . . . . . 1 . . . 1 . . 1 . 1 1 . . . 1 . Impact Weapon . | . . . . . . . . . . . . . . . . . . . . . . Slashing Weapon . | . . . . . . . . . . . . . . . . . . . . . . Piercing Weapon . | . . . . . . . . . . . . . . . . . . . . . . Special Melee Weapon . | . . . . . . . . . . . . . . . . . . . . . . Unidentified Prototypes 18 | . . . . . . . 1 3 . 1 . 1 5 . . . 2 2 . 3 . Corrupted Parts 7 | . . . . 2 . . . . . . . . 2 . . . . . . . 3 System Corruption 38 | . . . . 11 . . . . . . . . 15 . . . . . . . 12 Parts Lost 88 | . 3 4 . . 5 5 . 1 2 14 1 . 6 . 5 1 6 4 . 10 21 Power 18 | . . 1 . . 1 1 . . 1 2 . . . . 1 . 3 1 . 2 5 Propulsion 19 | . 1 2 . . 2 . . . . 5 . . 1 . . . 1 1 . 2 4 Utility 31 | . . . . . 1 3 . 1 . 4 1 . 3 . 4 1 2 . . 4 7 Weapon 20 | . 2 1 . . 1 1 . . 1 3 . . 2 . . . . 2 . 2 5 Highest Loss Streak 12 | . 1 3 . . 4 3 . 1 1 6 1 . 1 . 2 1 2 3 . 10 12 To Critical Strikes 1 | . . . . . . . . . . . . . . . . . 1 . . . . Average Backups 20 | 5 10 14 17 19 20 18 23 23 23 22 23 21 18 18 21 25 23 22 21 20 15 Power . | . 1 . 2 3 . . . . . . 1 . . . . . . . . . . Propulsion 1 | 3 1 . . 1 1 1 . . . . . 1 3 1 1 3 2 . . . . Utility 12 | . 5 11 14 12 14 13 19 16 14 17 17 14 9 8 10 11 11 13 15 14 12 Weapon 4 | . 1 1 . 2 3 3 3 5 6 3 4 4 3 7 8 10 8 5 3 2 . Tool/Special . | . . . . . . . . . . . . . . . . . . . . . . Unused Backups 82 | . 6 1 1 4 13 . 6 5 3 9 . 6 4 . 4 2 1 3 3 2 9 Power 3 | . . . . . 3 . . . . . . . . . . . . . . . . Propulsion 6 | . 2 . . . 1 . . . . . . . 1 . 1 . . . . . 1 Utility 57 | . 3 1 . 4 7 . 6 2 1 9 . 5 3 . 2 . . 1 3 2 8 Weapon 16 | . 1 . 1 . 2 . . 3 2 . . 1 . . 1 2 1 2 . . . Tool/Special . | . . . . . . . . . . . . . . . . . . . . . . Average Slot Usage (%) 84 | . 99 91 93 99 95 98 100 97 96 84 85 85 79 63 69 78 79 84 77 81 69 Engine 5 | . 14 12 14 14 8 . 4 9 2 1 . . 4 . 5 11 7 2 . . . Core 2 | . . . . . . 8 4 . . 1 6 11 7 10 3 . 2 . . . 3 Reactor 1 | . . . . . . . . . . . . . . . 2 . . 6 10 9 2 Treads 6 | . 19 2 . . . . . . . 2 . 4 2 10 11 11 11 9 10 9 5 Wheel 8 | . 8 20 28 28 24 27 27 27 23 6 20 9 6 . . . . . . . . Device 15 | . 10 . . . 6 4 8 9 14 13 15 17 20 11 15 20 16 30 31 28 19 Storage 7 | . 14 14 14 14 9 9 9 9 7 7 6 6 6 5 5 5 5 5 5 5 6 Processor 4 | . . . . . 14 4 . . . 6 6 6 2 . . 3 8 3 5 7 13 Hackware 2 | . . . . . . 6 9 1 . 8 10 12 3 5 1 3 2 . . . 4 Protection 8 | . 3 11 8 14 13 19 18 23 23 5 . . 6 11 5 5 4 9 5 4 . Energy Gun 2 | . 3 7 14 14 2 . . 3 23 . . . 1 . . . 6 6 . . . Energy Cannon 5 | . . . . . . 2 8 3 . 3 13 7 11 5 10 13 1 3 9 10 6 Ballistic Gun 4 | . 23 20 14 11 12 11 . . . 1 . . . . . . . . . . . Ballistic Cannon 1 | . . . . 2 2 . . . . 8 . . . . . . . . . . . Special Weapon 2 | . . . . . . 2 9 7 . 5 6 6 1 . 3 1 2 . . 1 . Peak Build Rating 132 | 7 8 12 15 20 44 47 37 39 43 62 59 83 93 101 115 107 110 132 131 132 104 Average Rating 69 | 5 7 8 11 16 31 35 36 33 37 46 58 76 81 97 100 99 100 121 129 123 79 On Entrance 56 | . 7 8 9 15 20 34 36 37 31 41 58 59 82 87 98 96 106 110 113 131 65 Naked Turns 7 | . . . . . . . . . . . . . . . . . . . . . 7 Heaviest Build 229 | 14 50 53 88 97 103 121 103 110 112 115 111 125 157 147 229 205 202 157 161 161 139 Greatest Support 150 | 40 40 32 32 32 42 36 36 36 34 40 36 70 70 140 150 150 150 150 140 140 113 Greatest Overweight (x) 49 | . 2 2 2 3 8 3 2 4 3 11 3 4 5 1 1 1 1 49 1 1 31 Average Overweight (x) 1 | . 1 1 1 2 2 2 2 2 2 3 3 1 3 . . 1 . . 1 . 1 Largest Inventory Capacity 30 | 8 20 20 25 25 25 25 25 25 25 25 25 25 25 25 30 30 30 25 25 25 25 Average Capacity 25 | 7 16 20 23 25 25 24 25 25 25 25 25 25 25 25 27 30 27 25 25 25 24 Most Carried 30 | 7 15 19 22 25 25 25 25 25 25 25 25 25 25 25 30 30 30 25 25 25 19 Average Carried 23 | 5 10 15 19 24 24 19 24 24 24 23 24 24 24 22 25 29 26 24 24 24 15 Final Capacity 30 | 8 20 20 25 25 25 25 25 25 25 25 25 25 25 25 30 30 25 25 25 25 5 Final Carried 29 | 6 13 18 22 25 25 25 24 25 25 25 24 25 25 22 29 29 25 24 25 17 5 Class Distribution -------------------- 25% | Bothacker-Tank 18% | Mutant 12% | Botlord-Tank 11% | Bothacker-Mutant 11% | Scavenger-Tank 6% | Scavenger-Mutant 5% | Pyromaniac-Tank 3% | Tank Dominant Class ---------------- Mutant | -10/Materials Mutant | -10/Mines Scavenger-Mutant | -10/Exiles Trapper-Mutant | -9/Mines Mutant | -8/Materials Mutant | -8/Garrison Bothacker-Mutant | -8/Materials Bothacker-Mutant | -8/Storage Tank | -7/Factory Bothacker-Tank | -7/Garrison Bothacker-Tank | -6/Factory Bothacker-Tank | -6/Waste Pyromaniac-Tank | -6/Factory Mutant | -5/Factory Bothacker-Tank | -5/Garrison Botlord-Tank | -5/Factory Bothacker-Tank | -5/Extension Bothacker-Tank | -4/Factory Scavenger-Tank | -4/Waste Scavenger-Tank | -4/Factory Scavenger-Mutant | -4/Garrison Resources | -11 -10 -10 -10 -9 -8 -8 -8 -8 -7 -7 -6 -6 -6 -5 -5 -5 -5 -4 -4 -4 -4 ----------- Run | Yrd Mat Min Exi Min Mat Gar Mat Sto Fac Gar Fac Was Fac Fac Gar Fac Ext Fac Was Fac Gar Matter Collected 8255 | 320 726 119 20 85 505 803 52 315 65 1233 30 85 534 30 972 159 1168 386 74 177 397 Remotely . | . . . . . . . . . . . . . . . . . . . . . . Salvage Created 14906 | 115 715 71 . . 592 697 157 709 80 799 69 1837 1850 143 1752 396 1374 907 1619 423 601 Parts 445 | 7 36 . . . 32 30 5 30 9 14 1 13 54 8 60 17 43 39 13 18 16 Haulers Intercepted 16 | . 2 . . . 5 . 2 3 1 . . . . . . . 1 1 . 1 . Recyclers Shooed 7 | 1 . . . . . . . 1 1 . . . 2 . . 2 . . . . . Parts Field Recycled . | . . . . . . . . . . . . . . . . . . . . . . Retrieved Matter . | . . . . . . . . . . . . . . . . . . . . . . Parts Self-Destructed . | . . . . . . . . . . . . . . . . . . . . . . Prevented . | . . . . . . . . . . . . . . . . . . . . . . Kills | -11 -10 -10 -10 -9 -8 -8 -8 -8 -7 -7 -6 -6 -6 -5 -5 -5 -5 -4 -4 -4 -4 ------- Run | Yrd Mat Min Exi Min Mat Gar Mat Sto Fac Gar Fac Was Fac Fac Gar Fac Ext Fac Was Fac Gar Combat Hostiles Destroyed 202 | . 17 5 . . 12 17 1 10 4 10 1 6 22 5 19 8 30 17 6 5 7 Guns 58 | . 17 5 . . 11 10 . 1 4 2 . . . . . . 6 2 . . . Cannons 50 | . . . . . . 2 1 3 . 6 1 . 5 1 13 3 . 7 . 4 4 AOE 59 | . . . . . 1 5 . 5 . 2 . . 8 4 3 3 21 5 1 1 . Classes Destroyed 20 | 2 5 1 . . 3 3 . 2 . 1 . 1 1 . . . . 1 . . . Worker 4 | . . . . . . . . . . . . . 1 . . . 1 2 . . . Builder 5 | . . . . . . . . 1 . . . . 3 . . 1 . . . . . Tunneler 3 | 1 . . . . . . . . . . . . . . . 1 . 1 . . . Hauler 16 | . 2 . . . 5 . 2 3 1 . . . . . . . 1 1 . 1 . Recycler 3 | 1 . . . . . . . . . . . . 2 . . . . . . . . Mechanic 3 | . . . . . . . . 2 . . . . 1 . . . . . . . . Operator 7 | . 1 . . . . . . . . . . . 1 1 . 1 2 . . 1 . Watcher 7 | . 1 . . . . . . . . . . . 1 . . 2 2 1 . . . Swarmer 41 | . 3 . . . 3 . . 2 4 . . . 3 5 4 4 9 4 . . . Grunt 74 | . 14 . . . 4 7 1 4 . 5 . . 8 . 6 . 15 6 . 1 3 Brawler 3 | . . . . . . 1 . . . . . . 1 . . . 1 . . . . Duelist 4 | . . . . . 1 . . . . . . . 3 . . . . . . . . Sentry 25 | . . . . . 3 2 . 4 . 2 1 . 5 . 5 . 3 . . . . Specialist 7 | . . . . . . 3 . . . 2 . . . . . . . 2 . . . Hunter 13 | . . . . . 1 1 . . . . . . 3 . 1 . 2 . . 3 2 Programmer 19 | . . . . . . 3 . . . 1 . . 3 . 3 4 . 3 . 1 1 Heavy 2 | . . . . . . . . . . . . . . . . . . 2 . . . Behemoth 2 | . . . . . . . . . . 1 . . . . . . . . . . 1 Compactor 12 | . . . . . . . . . . . . 6 . . . . . . 6 . . Assembled 5 | . . 5 . . . . . . . . . . . . . . . . . . . Thug 1 | . . . . . . . . . . . . . . . . . 1 . . . . Best Kill Streak 8 | 2 6 4 . . 6 5 1 3 4 2 1 2 7 6 3 5 8 7 2 2 2 Combat Bots Only 8 | . 5 4 . . 6 5 1 2 4 2 1 2 4 5 3 4 8 6 2 2 2 Max Kills in Single Turn 4 | 1 1 1 . . 2 2 1 2 2 1 1 1 3 4 3 3 3 4 1 1 1 Gunslinging 1 | . . . . . 1 . . . . . . . . . . . . . . . . Exploded 4 | . . . . . 1 2 . 1 . 1 . . 2 3 3 2 3 4 1 1 . Melee . | . . . . . . . . . . . . . . . . . . . . . . Uniques/NPCs Destroyed . | . . . . . . . . . . . . . . . . . . . . . . Combat | -11 -10 -10 -10 -9 -8 -8 -8 -8 -7 -7 -6 -6 -6 -5 -5 -5 -5 -4 -4 -4 -4 -------- Run | Yrd Mat Min Exi Min Mat Gar Mat Sto Fac Gar Fac Was Fac Fac Gar Fac Ext Fac Was Fac Gar Hostile Shots Fired 2228 | . 85 36 . . 94 206 5 53 67 206 36 . 206 17 291 49 147 210 . 282 238 Missed 655 | . 18 5 . . 26 60 1 18 23 53 15 . 63 1 65 14 40 68 . 105 80 Hits 1573 | . 67 31 . . 68 146 4 35 44 153 21 . 143 16 226 35 107 142 . 177 158 Melee 8 | . . 4 . . . 2 . . . 1 . . . . . . . . . . 1 Projectile 1565 | . 67 27 . . 68 144 4 35 44 152 21 . 143 16 226 35 107 142 . 177 157 AOE 1 | . . . . . . . . . . 1 . . . . . . . . . . . Critical Strikes 62 | . . . . . 3 7 . 2 1 3 . . . 1 13 1 9 7 . 9 6 Actively Blocked 20 | . . . . . . 1 . 1 . . . . . . . . . 4 . 9 5 Part Disruptions 1 | . . . . . . . . . . . . . . . . . . 1 . . . Damage Taken 22431 | . 738 443 . . 864 1983 50 423 604 1955 188 32 1726 335 3170 459 1547 2399 37 2530 2948 Core 2625 | . 87 60 . . 131 245 . 41 81 266 32 . 293 22 128 20 69 144 . 279 727 Absorbed by Shields 1751 | . . . . . . . 19 162 96 32 . . 265 . 34 257 697 . . 169 20 Reduced by Siege Mode 68 | . . . . . . . . . . . . . . . 60 . 8 . . . . Redirected to Shielding 550 | . . . . . . 71 7 28 79 115 . . 101 104 29 . . . . . 16 Ignored by Resistances 2927 | . . . . . . 100 . . . . 57 . 204 20 1432 . 189 325 . 510 90 Regen/Repaired (Parts) 170 | . . . . . . . . . . . . . . . . . 36 30 . 104 . Core Remaining (%) 58 | 100 . . . 41 . . . 24 . 50 . . 61 . . . 76 . . . . Volleys Fired 1028 | 15 67 21 . . 40 92 14 50 12 117 7 10 62 2 192 30 134 54 23 24 62 Largest 3 | 2 2 2 . . 2 2 1 2 3 3 2 2 3 1 3 3 2 3 1 3 2 Hottest 308 | 40 60 60 . . 250 250 63 130 195 196 196 250 257 250 270 270 250 294 250 308 210 Shots Fired 1535 | 30 133 40 . . 78 126 14 56 29 202 10 12 102 2 237 48 158 111 25 48 74 Gun 679 | 30 133 40 . . 72 90 . 9 27 24 . . 20 . 113 . 76 34 . 2 9 Cannon 688 | . . . . . 6 25 10 27 2 145 6 12 74 2 113 43 26 65 25 42 65 Launcher 67 | . . . . . . 9 . 11 . 6 . . . . . 2 27 12 . . . Special 101 | . . . . . . 2 4 9 . 27 4 . 8 . 11 3 29 . . 4 . Kinetic 527 | 30 99 22 . . 72 90 . . 2 99 . . . . 113 . . . . . . Thermal 790 | . 34 18 . . 6 12 . 12 27 70 6 12 94 2 113 43 101 99 25 42 74 Explosive 56 | . . . . . . 9 . . . 6 . . . . . 2 27 12 . . . Electromagnetic 61 | . . . . . . 13 10 35 . . . . . . . . 1 . . 2 . Robot Hit Streak 41 | 6 18 6 . . 11 11 7 8 8 41 7 6 11 2 39 26 10 16 10 6 17 Robot Miss Streak 8 | 3 2 2 . . 4 4 1 4 4 3 2 2 8 1 4 3 5 3 3 4 4 Penetration Max 1 | . . . . . . 1 . . . 1 . . . . . . . . . . . Secondary Targets 6 | . 2 . . . 3 . . . 1 . . . . . . . . . . . . Max Gunslinging Chain 1 | . 1 . . . 1 . . . 1 . . . . . . . . . . . . Shots Hit Robots 989 | 21 93 26 . . 56 66 12 35 24 133 8 10 53 2 181 29 86 74 10 20 50 Core Hits 569 | 6 42 14 . . 31 34 3 26 29 40 2 10 74 11 72 15 87 39 13 9 12 Critical Kills 11 | . 1 . . . . . . . . 1 . . 2 . 3 2 . 1 . . 1 Critical Parts Destroyed 3 | . . . . . 1 1 . . . . . . . . 1 . . . . . . Critical Strikes 23 | . 1 . . . 2 1 . . . 7 . . 4 . 4 2 . 1 . . 1 Burn 2 | . . . . . . . . . . . . . 2 . . . . . . . . Meltdown 8 | . . . . . . . . . . 1 . . 2 . 1 2 . 1 . . 1 Destroy 6 | . 1 . . . 1 1 . . . . . . . . 3 . . . . . . Blast 7 | . . . . . 1 . . . . 6 . . . . . . . . . . . Melee Attacks . | . . . . . . . . . . . . . . . . . . . . . . Impact . | . . . . . . . . . . . . . . . . . . . . . . Slashing . | . . . . . . . . . . . . . . . . . . . . . . Piercing . | . . . . . . . . . . . . . . . . . . . . . . Sneak Attacks . | . . . . . . . . . . . . . . . . . . . . . . Combat Hostiles . | . . . . . . . . . . . . . . . . . . . . . . Follow-up Attacks . | . . . . . . . . . . . . . . . . . . . . . . Damage Inflicted 32935 | 203 972 243 . . 1275 2044 239 1426 323 3863 202 770 3233 361 4312 1511 4967 3893 580 581 1937 Guns 8464 | 203 972 243 . . 1013 1262 . 90 323 292 . . 200 . 1620 . 1431 718 . 27 70 Cannons 14285 | . . . . . 101 309 215 452 . 3107 202 424 1145 109 2479 1068 343 1681 229 554 1867 Explosions 10153 | . . . . . 161 473 24 884 . 464 . 346 1888 224 213 443 3188 1494 351 . . Melee . | . . . . . . . . . . . . . . . . . . . . . . Ramming 33 | . . . . . . . . . . . . . . 28 . . 5 . . . . Kinetic 6417 | 203 710 106 . . 1089 1262 . . . 1427 . . . . 1620 . . . . . . Thermal 20328 | . 262 137 . . 183 284 24 333 323 1972 202 770 2829 333 2692 1167 2674 3072 580 554 1937 Explosive 4401 | . . . . . . 473 . . . 464 . . 11 . . 344 2288 821 . . . Electromagnetic 1756 | . . . . . 3 25 215 1093 . . . . 393 . . . . . . 27 . Impact . | . . . . . . . . . . . . . . . . . . . . . . Slashing . | . . . . . . . . . . . . . . . . . . . . . . Piercing . | . . . . . . . . . . . . . . . . . . . . . . Highest Corruption 52 | . . . . 11 . 2 2 2 . 2 . 29 52 . . 3 6 2 29 29 42 Average Corruption 14 | . . . . 8 . 1 2 2 . 1 . 16 43 . . 2 3 1 15 29 30 Corruption Purged . | . . . . . . . . . . . . . . . . . . . . . . Corruption Blocked . | . . . . . . . . . . . . . . . . . . . . . . Effects 338 | . . . . 6 . 8 3 15 . 24 . 16 119 . . 16 32 1 30 26 42 Message Errors 77 | . . . . 1 . 2 2 6 . 8 . 4 30 . . 4 5 . 5 3 7 Matter Fused 86 | . . . . 4 . 4 1 . . 6 . 4 28 . . 5 8 . 9 7 10 Heat Flow Errors 35 | . . . . . . . . 3 . 2 . 1 13 . . 3 6 . 2 3 2 Energy Discharges 35 | . . . . 1 . 1 . 1 . 3 . 2 14 . . 1 4 1 2 2 3 Parts Rejected 4 | . . . . . . . . . . . . 1 1 . . 1 1 . . . . Parts Fused 3 | . . . . . . . . . . . . . 1 . . . . . 1 . 1 Data Loss (minor) 39 | . . . . . . 1 . 1 . 1 . 2 11 . . 2 2 . 7 6 6 Data Loss (major) 12 | . . . . . . . . 1 . . . . 3 . . . 2 . 1 . 5 Misfires 20 | . . . . . . . . 2 . 3 . 1 9 . . . 2 . 2 1 . Alerts 7 | . . . . . . . . 1 . . . . 3 . . . 1 . 1 1 . Misdirections 4 | . . . . . . . . . . . . . 1 . . . . . . 1 2 Weapon Failures 16 | . . . . . . . . . . 1 . 1 5 . . . 1 . . 2 6 Overload Shots . | . . . . . . . . . . . . . . . . . . . . . . Overflow Damage 646 | . . . . . . 3 . 37 . 109 . . 59 9 64 101 105 114 . 11 34 Projectiles 455 | . . . . . . 3 . 9 . 92 . . 55 9 64 97 . 81 . 11 34 Explosions 191 | . . . . . . . . 28 . 17 . . 4 . . 4 105 33 . . . Melee . | . . . . . . . . . . . . . . . . . . . . . . Knockbacks 15 | . . . . . . . . . . 15 . . . . . . . . . . . Impact . | . . . . . . . . . . . . . . . . . . . . . . Kinetic 15 | . . . . . . . . . . 15 . . . . . . . . . . . Secondary . | . . . . . . . . . . . . . . . . . . . . . . Self-Inflicted Damage 1107 | . . . . . . 26 . 75 . . . 32 510 72 . 64 248 . 37 43 . Shots 67 | . . . . . . 1 . 4 . . . 3 28 6 . 2 16 . 3 4 . Rammed 3 | . . . . . . . . . . . . . . 2 . . 1 . . . . Targets Rammed 3 | . . . . . . . . . . . . . . 2 . . 1 . . . . Kicked . | . . . . . . . . . . . . . . . . . . . . . . Crushed . | . . . . . . . . . . . . . . . . . . . . . . Highest Temperature 632 | . 134 505 . . 416 392 72 228 243 266 102 300 507 480 632 183 530 . 34 73 487 Average Temperature 108 | . 36 215 . . 129 94 29 54 86 63 62 105 163 224 115 66 106 . 19 60 114 Received Heat Transfer 4445 | . 357 280 . . 243 522 18 121 49 562 30 . 255 117 746 42 271 567 . 18 247 Effects 40 | . . 4 . . . 1 . . . . . . 17 3 6 . 6 . . . 3 Shutdowns 15 | . . 1 . . . . . . . . . . 7 2 1 . 2 . . . 2 Energy Bleed 4 | . . . . . . . . . . . . . 2 1 . . . . . . 1 Interference 9 | . . 2 . . . . . . . . . . 2 . 3 . 2 . . . . Matter Decay 1 | . . 1 . . . . . . . . . . . . . . . . . . . Short Circuit 5 | . . . . . . 1 . . . . . . 2 . 2 . . . . . . Damage (minor) 1 | . . . . . . . . . . . . . 1 . . . . . . . . Damage (major) 4 | . . . . . . . . . . . . . 2 . . . 2 . . . . Damage (core) 1 | . . . . . . . . . . . . . 1 . . . . . . . . Siege Activations 2 | . . . . . . . . . . . . . . . 1 . 1 . . . . Total Turns 61 | . . . . . . . . . . . . . . . 39 . 22 . . . . Longest Duration 39 | . . . . . . . . . . . . . . . 39 . 22 . . . . Martial Activations . | . . . . . . . . . . . . . . . . . . . . . . Shielding Activations . | . . . . . . . . . . . . . . . . . . . . . . Robots Disrupted 2 | . . . . . . . . . . . . . 2 . . . . . . . . Combat Hostiles 2 | . . . . . . . . . . . . . 2 . . . . . . . . Robots Corrupted 2 | . . . . . . . . 2 . . . . . . . . . . . . . Combat Hostiles 1 | . . . . . . . . 1 . . . . . . . . . . . . . Parts Fried 6 | . . . . . . . 2 4 . . . . . . . . . . . . . Impact Corruptions . | . . . . . . . . . . . . . . . . . . . . . . Robots Melted 39 | . . . . . . . . . . 1 . 6 10 1 3 3 4 3 5 . 3 Combat Hostiles 34 | . . . . . . . . . . . . 6 9 . 3 2 3 3 5 . 3 Parts Melted 144 | . . . . . . 1 . 1 . 5 1 14 39 7 18 8 17 7 18 2 6 Heat Transferred 45363 | . 575 325 . . 985 640 50 460 400 2935 300 3080 10428 1840 4238 1980 6819 3701 2880 709 3018 Parts Sabotaged . | . . . . . . . . . . . . . . . . . . . . . . Parts Stolen . | . . . . . . . . . . . . . . . . . . . . . . Parts Stripped . | . . . . . . . . . . . . . . . . . . . . . . Power Chain Reactions 6 | . . . . . . . 1 5 . . . . . . . . . . . . . Alert | -11 -10 -10 -10 -9 -8 -8 -8 -8 -7 -7 -6 -6 -6 -5 -5 -5 -5 -4 -4 -4 -4 ------- Run | Yrd Mat Min Exi Min Mat Gar Mat Sto Fac Gar Fac Was Fac Fac Gar Fac Ext Fac Was Fac Gar Maximum Alert Level 3 | . . . . . . 3 1 2 1 2 1 . 2 1 3 2 3 3 1 . . Low Security (%) 50 | 100 100 100 . 100 100 19 . 57 79 13 . 100 87 18 2 . 72 . 68 100 100 Level 1 19 | . . . . . . 30 100 17 20 25 100 . 9 81 7 79 9 . 31 . . Level 2 20 | . . . . . . 30 . 25 . 60 . . 3 . 56 20 5 45 . . . Level 3 8 | . . . . . . 19 . . . . . . . . 33 . 12 54 . . . Level 4 . | . . . . . . . . . . . . . . . . . . . . . . Level 5 . | . . . . . . . . . . . . . . . . . . . . . . High Security . | . . . . . . . . . . . . . . . . . . . . . . Max Security . | . . . . . . . . . . . . . . . . . . . . . . Peak Influence 1078 | 5 137 25 . 48 155 814 396 521 233 632 331 95 475 279 1078 565 1048 975 328 50 88 Initial 565 | . . 25 . . 2 47 396 142 233 98 331 95 . 230 167 565 116 513 324 . . Average 279 | . 51 2 . 8 55 434 361 237 167 409 304 29 130 229 631 334 222 714 144 11 23 Influence Increases 9582 | 10 544 . . 58 508 857 122 915 137 874 23 . 1044 109 1021 263 1780 912 22 166 217 Destroy 0b10 Robot/C 4455 | . 340 . . 40 300 500 40 480 100 420 15 . 360 75 345 135 750 375 . 75 105 Destroy 0b10 Robot/NC 295 | 10 20 . . . 30 . 10 40 5 20 . . 40 4 24 20 32 28 . 8 4 Destroy Leader 864 | . 76 . . 10 112 20 14 150 22 20 8 . 114 8 16 28 124 92 . 26 24 Allied During Kill 621 | . . . . 8 10 20 4 148 8 38 . . 12 . 9 3 300 61 . . . Trap Triggered on 0b10 16 | . . . . . . . . . . . . . . . . . . . . . 16 Successful Hack 122 | . 18 . . . 3 26 4 12 . . . . 5 18 . 7 29 . . . . Select Force Hacks 129 | . 60 . . . . . . . . . . . 23 . . . 23 . . 23 . Disable Machine 903 | . . . . . 45 . 15 60 . 15 . . 348 . 72 24 84 216 . 12 12 Anti-Garrison Action 914 | . . . . . . 150 . . . 275 . . . . 451 . . . . . 38 Destroy Structure 972 | . . . . . 8 111 5 10 2 56 . . 106 4 20 46 402 140 22 22 18 Lose Combat Pursuer 291 | . 30 . . . . 30 30 15 . 30 . . 36 . 84 . 36 . . . . Influence Decreases 9573 | 10 478 66 . 50 443 116 598 738 512 382 381 274 574 340 182 1103 970 1033 949 166 208 Entered New Map 3576 | . . 41 . . 6 26 418 196 282 42 301 179 . 240 72 513 122 535 603 . . Time Decay 4331 | 10 448 25 . 50 347 . 140 392 190 . 30 95 494 100 . 580 562 398 346 124 . Lost Part 780 | . 30 . . . 50 50 . 10 20 140 10 . 60 . 50 10 60 40 . 42 208 Lost Ally 886 | . . . . . 40 40 40 140 20 200 40 . 20 . 60 . 226 60 . . . Squads Dispatched 44 | . 4 . . . 1 . . 3 1 . . . 11 1 . 4 10 6 . 3 . Investigation 13 | . 3 . . . . . . 1 . . . . 2 1 . . 5 . . 1 . Extermination 11 | . . . . . . . . . . . . . 6 . . 3 . 1 . 1 . Reinforcement 20 | . 1 . . . 1 . . 2 1 . . . 3 . . 1 5 5 . 1 . Assault . | . . . . . . . . . . . . . . . . . . . . . . Garrison . | . . . . . . . . . . . . . . . . . . . . . . Intercept . | . . . . . . . . . . . . . . . . . . . . . . Searches Triggered . | . . . . . . . . . . . . . . . . . . . . . . Construction Impeded 8 | . . . . . . . . 1 . . . . 3 . . . 3 1 . . . Haulers Reinforced 2 | . . . . . . . . . . . . . . . . . . 1 . 1 . Active Scanning Responses . | . . . . . . . . . . . . . . . . . . . . . . Cargo Convoy Interrupts . | . . . . . . . . . . . . . . . . . . . . . . Stealth | -11 -10 -10 -10 -9 -8 -8 -8 -8 -7 -7 -6 -6 -6 -5 -5 -5 -5 -4 -4 -4 -4 --------- Run | Yrd Mat Min Exi Min Mat Gar Mat Sto Fac Gar Fac Was Fac Fac Gar Fac Ext Fac Was Fac Gar Distress Signals 9 | . 1 . . . 2 . . 3 . . . . . . . . 2 1 . . . Communications Jammed 19 | . . . . . . . . . . . . . . . . . 4 15 . . . Distress Signals 19 | . . . . . . . . . . . . . . . . . 4 15 . . . Times Spotted 371 | . 25 5 . . 20 24 6 31 5 34 3 5 29 10 35 18 60 24 6 15 16 Peak Tracking Total 15 | . 6 4 . . 8 5 3 4 4 10 2 1 6 6 15 4 6 6 2 6 6 Tactical Retreats 16 | . 2 . . . . 1 1 1 . 2 . . 3 . 3 . 3 . . . . Traps | -11 -10 -10 -10 -9 -8 -8 -8 -8 -7 -7 -6 -6 -6 -5 -5 -5 -5 -4 -4 -4 -4 ------- Run | Yrd Mat Min Exi Min Mat Gar Mat Sto Fac Gar Fac Was Fac Fac Gar Fac Ext Fac Was Fac Gar Traps Triggered 15 | . 1 . . . . 2 . 1 1 4 1 . 2 . 1 . . 1 . . 1 Indirectly . | . . . . . . . . . . . . . . . . . . . . . . Trap Hack Attempts . | . . . . . . . . . . . . . . . . . . . . . . Triggered . | . . . . . . . . . . . . . . . . . . . . . . Disarmed . | . . . . . . . . . . . . . . . . . . . . . . Reprogrammed . | . . . . . . . . . . . . . . . . . . . . . . Reused 2 | . . . . . . . . . . . . . . . . . . . . . 2 Traps Extracted 1 | . . . . . . . . . . . . . . . . . . . . . 1 Installed 7 | . . . . . 4 . . . . . . . . . . . . . . . 3 Triggered 2 | . . . . . . . . . . . . . . . . . . . . . 2 Most Traps Carried 6 | . . . . 4 4 . . . . . . . . . 6 6 6 6 6 6 6 Machines | -11 -10 -10 -10 -9 -8 -8 -8 -8 -7 -7 -6 -6 -6 -5 -5 -5 -5 -4 -4 -4 -4 ---------- Run | Yrd Mat Min Exi Min Mat Gar Mat Sto Fac Gar Fac Was Fac Fac Gar Fac Ext Fac Was Fac Gar Machines Disabled 86 | . . . . . 3 4 1 4 . 3 . . 29 . 8 2 11 18 . 1 2 Max in Single Turn 13 | . . . . . 2 2 . 1 . 1 . . 13 . 1 1 3 4 . 1 1 Garrison Relay 8 | . . . . . . 3 . . . 2 . . . . 2 . . . . . 1 Phase Generator 1 | . . . . . . 1 . . . . . . . . . . . . . . . Energy Cycler 2 | . . . . . . . . . . . . . . . . . 2 . . . . Machines Repaired . | . . . . . . . . . . . . . . . . . . . . . . Machines Dismantled . | . . . . . . . . . . . . . . . . . . . . . . Machines Sabotaged . | . . . . . . . . . . . . . . . . . . . . . . Overloaded Fab Kills . | . . . . . . . . . . . . . . . . . . . . . . Hacking | -11 -10 -10 -10 -9 -8 -8 -8 -8 -7 -7 -6 -6 -6 -5 -5 -5 -5 -4 -4 -4 -4 --------- Run | Yrd Mat Min Exi Min Mat Gar Mat Sto Fac Gar Fac Was Fac Fac Gar Fac Ext Fac Was Fac Gar Machines Accessed 64 | . 7 1 2 . 6 5 3 9 1 . . . 9 3 1 4 10 1 . 2 . Terminals 42 | . 5 . . . 4 5 2 8 . . . . 5 2 1 2 8 . . . . Fabricators 4 | . . . . . . . . . . . . . 2 . . 1 . 1 . . . Repair Stations 1 | . . . . . . . . . . . . . . . . . 1 . . . . Recycling Units 7 | . 2 . . . . . 1 1 . . . . 1 . . 1 1 . . . . Scanalyzers 3 | . . . . . 1 . . . . . . . 1 . . . . . . 1 . Garrison Access 4 | . . . . . 1 . . . 1 . . . . 1 . . . . . 1 . Total Hacks 129 | . 18 1 2 . 12 8 5 22 1 . . . 16 5 1 11 23 2 . 2 . Successful 59 | . 13 1 2 . 6 3 4 8 1 . . . 5 2 . 3 7 2 . 2 . Failed 70 | . 5 . . . 6 5 1 14 . . . . 11 3 1 8 16 . . . . Catastrophic 21 | . . . . . 2 . . 5 . . . . 5 2 . 2 5 . . . . Database Lockouts . | . . . . . . . . . . . . . . . . . . . . . . Manual 46 | . 14 . 1 . 9 . 4 11 . . . . 3 . . . 3 . . 1 . Terminals 96 | . 14 . . . 9 8 4 20 . . . . 10 4 1 7 19 . . . . Fabricators 6 | . . . . . . . . . . . . . 3 . . 1 . 2 . . . Repair Stations 1 | . . . . . . . . . . . . . . . . . 1 . . . . Recycling Units 14 | . 4 . . . . . 1 2 . . . . 1 . . 3 3 . . . . Scanalyzers 5 | . . . . . 2 . . . . . . . 2 . . . . . . 1 . Garrison Access 4 | . . . . . 1 . . . 1 . . . . 1 . . . . . 1 . Terminal Hacks 24 | . 2 1 2 . 1 3 . 7 . . . . 1 1 . 2 4 . . . . Record 1 | . . . 1 . . . . . . . . . . . . . . . . . . Part Schematic 2 | . . . . . 1 . . . . . . . . . . . 1 . . . . Robot Schematic 2 | . . . . . . . . 1 . . . . . 1 . . . . . . . Prototype ID Bank 1 | . . . . . . . . . . . . . . . . . 1 . . . . Open Door 5 | . . 1 . . . . . 2 . . . . . . . 1 1 . . . . Branch Access Points 1 | . . . . . . . . 1 . . . . . . . . . . . . . Emergency Access Points 1 | . . . . . . 1 . . . . . . . . . . . . . . . Registered Components 2 | . . . . . . . . 1 . . . . . . . . 1 . . . . Zone Layout 6 | . 2 . . . . . . 2 . . . . 1 . . 1 . . . . . Garrison Registry 1 | . . . . . . 1 . . . . . . . . . . . . . . . Patrol Navigation 1 | . . . . . . 1 . . . . . . . . . . . . . . . Proto ID Catalog 1 | . . . 1 . . . . . . . . . . . . . . . . . . Fabricator Hacks 5 | . . . . . . . . . . . . . 2 . . 1 . 2 . . . Load Schematic 2 | . . . . . . . . . . . . . 1 . . . . 1 . . . Build 3 | . . . . . . . . . . . . . 1 . . 1 . 1 . . . Repair Station Hacks . | . . . . . . . . . . . . . . . . . . . . . . Recycling Unit Hacks 5 | . 2 . . . . . 1 . . . . . 1 . . . 1 . . . . Retrieve Components 5 | . 2 . . . . . 1 . . . . . 1 . . . 1 . . . . Scanalyzer . | . . . . . . . . . . . . . . . . . . . . . . Garrison Access Hacks 4 | . . . . . 1 . . . 1 . . . . 1 . . . . . 1 . Unlock Access 4 | . . . . . 1 . . . 1 . . . . 1 . . . . . 1 . Unauthorized Hacks 21 | . 9 . . . 4 . 3 1 . . . . 1 . . . 2 . . 1 . Terminals 16 | . 7 . . . 4 . 3 1 . . . . . . . . 1 . . . . Botnet 6 | . 2 . . . 1 . 1 1 . . . . . . . . 1 . . . . Skim 10 | . 5 . . . 3 . 2 . . . . . . . . . . . . . . Fabricators . | . . . . . . . . . . . . . . . . . . . . . . Repair Stations . | . . . . . . . . . . . . . . . . . . . . . . Recycling Units 3 | . 2 . . . . . . . . . . . . . . . 1 . . . . Tunnel 3 | . 2 . . . . . . . . . . . . . . . 1 . . . . Scanalyzers 2 | . . . . . . . . . . . . . 1 . . . . . . 1 . Extract 2 | . . . . . . . . . . . . . 1 . . . . . . 1 . Garrison Access . | . . . . . . . . . . . . . . . . . . . . . . Data Cores Recovered 5 | . . . . . . . . . . . . . 1 . . 1 2 . . 1 . Used . | . . . . . . . . . . . . . . . . . . . . . . Hacking Detections 45 | . 4 . . . 6 4 2 8 . . . . 6 2 1 3 8 . . 1 . Full Trace Events 5 | . . . . . . . . . . . . . 1 1 . . 3 . . . . Feedback Events . | . . . . . . . . . . . . . . . . . . . . . . Feedback Blocked . | . . . . . . . . . . . . . . . . . . . . . . Robot Schematics Acquired 2 | . . . . . . . . 1 . . . . . 1 . . . . . . . Robots Built 4 | . . . . . . . . . . . . . 3 . . . . 1 . . . Authchips 2 | . . . . . . . . . . . . . 1 . . . . 1 . . . Time 183 | . . . . . . . . . . . . . 99 . . . . 84 . . . Total Robot Build Rating 12 | . . . . . . . . . . . . . 6 . . . . 6 . . . Part Schematics Acquired 16 | . . . . . 1 . . . . . . . 7 . . . 1 . . 7 . Parts Built 2 | . . . . . . . . . . . . . . . . 2 . . . . . Authchips . | . . . . . . . . . . . . . . . . . . . . . . Time 139 | . . . . . . . . . . . . . . . . 139 . . . . . Total Part Build Rating 18 | . . . . . . . . . . . . . . . . 18 . . . . . Parts Repaired . | . . . . . . . . . . . . . . . . . . . . . . Time . | . . . . . . . . . . . . . . . . . . . . . . Parts Recycled . | . . . . . . . . . . . . . . . . . . . . . . Recycled Matter . | . . . . . . . . . . . . . . . . . . . . . . Retrieved Matter . | . . . . . . . . . . . . . . . . . . . . . . Retrieved Components 22 | . 5 . . . . . 3 . . . . . 4 . . . 10 . . . . Parts Scanalyzed . | . . . . . . . . . . . . . . . . . . . . . . Part Schematics Acquired . | . . . . . . . . . . . . . . . . . . . . . . Parts Damaged . | . . . . . . . . . . . . . . . . . . . . . . Bothacking | -11 -10 -10 -10 -9 -8 -8 -8 -8 -7 -7 -6 -6 -6 -5 -5 -5 -5 -4 -4 -4 -4 ------------ Run | Yrd Mat Min Exi Min Mat Gar Mat Sto Fac Gar Fac Was Fac Fac Gar Fac Ext Fac Was Fac Gar Used RIF Installer 4 | . . . . . . 1 . . . 1 . . . . 2 . . . . . . Threat Obfuscator 1 | . . . . . . . . . . 1 . . . . . . . . . . . Watcher Feeds 1 | . . . . . . . . . . . . . . . 1 . . . . . . Patrol Navigation 1 | . . . . . . . . . . . . . . . 1 . . . . . . Robots Hacked 40 | . . . . . . 2 3 3 . 14 2 . 3 . 6 2 3 . . 2 . Non-combat 2 | . . . . . . . . 2 . . . . . . . . . . . . . Combat 38 | . . . . . . 2 3 1 . 14 2 . 3 . 6 2 3 . . 2 . Robot Hacks Applied 43 | . . . . . . 2 4 4 . 14 2 . 3 . 6 2 3 . . 3 . parse_system 2 | . . . . . . . . . . 1 . . . . . . 1 . . . . start_evac 1 | . . . . . . . . 1 . . . . . . . . . . . . . map_route 1 | . . . . . . . . 1 . . . . . . . . . . . . . find_shortcuts 2 | . . . . . . . . . . 2 . . . . . . . . . . . find_garrison 2 | . . . . . . . 1 . . . . . . . . . . . . 1 . spike_heat 6 | . . . . . . . 1 2 . . . . 1 . 1 . 1 . . . . overload_power 1 | . . . . . . . . . . . . . . . . . . . . 1 . amplify_resonance 8 | . . . . . . . 1 . . 4 . . . . 2 . . . . 1 . go_dormant 1 | . . . . . . . . . . . 1 . . . . . . . . . . formatsys_high 19 | . . . . . . 2 1 . . 7 1 . 2 . 3 2 1 . . . . Relay Couplers Released 33 | . . . . . . 11 . . . 7 . . . . 12 . . . . . 3 Machine Destruction 29 | . . . . . . 11 . . . 7 . . . . 8 . . . . . 3 Programmers 4 | . . . . . . . . . . . . . . . 4 . . . . . . Attached 22 | . . . . . . 2 2 1 . 6 1 . 1 . 6 1 1 . . 1 . Fabnet Peak Effective % . | . . . . . . . . . . . . . . . . . . . . . . Robots Rewired 17 | . . . . . . 2 . . . 3 . . 1 . . . 11 . . . . Allies Hacked . | . . . . . . . . . . . . . . . . . . . . . . Hacks Repelled . | . . . . . . . . . . . . . . . . . . . . . . Allies | -11 -10 -10 -10 -9 -8 -8 -8 -8 -7 -7 -6 -6 -6 -5 -5 -5 -5 -4 -4 -4 -4 -------- Run | Yrd Mat Min Exi Min Mat Gar Mat Sto Fac Gar Fac Was Fac Fac Gar Fac Ext Fac Was Fac Gar Total Allies 59 | . . . . 3 . 4 1 10 . 12 1 . 6 . 3 2 16 1 . . . Largest Group 10 | . . . . 3 3 3 2 10 3 3 1 . 3 . 1 2 6 3 . . . Highest-Rated Group 377 | . . . . 40 40 53 34 173 48 144 41 . 61 . 29 76 377 169 . . . Highest-Rated Ally 159 | . . . . 16 16 21 21 29 16 80 41 . 47 . 29 47 159 81 . . . Total Orders 3 | . . . . . . . . . 2 . . . . . . . . . . . 1 EXPLORE 2 | . . . . . . . . . 2 . . . . . . . . . . . . RETURN 1 | . . . . . . . . . . . . . . . . . . . . . 1 Ally Attacks 488 | . . . . 9 30 41 6 85 14 33 4 . 22 . 22 7 180 35 . . . Total Damage 9707 | . . . . 110 359 818 110 1041 117 1312 118 . 410 . 301 196 3766 1049 . . . Kills 85 | . . . . 2 4 8 1 16 1 11 . . 4 . 4 1 23 10 . . . Allies Corrupted 1 | . . . . . . . . . . 1 . . . . . . . . . . . Allies Melted 4 | . . . . . . . . . . 1 . . 1 . . . 2 . . . . Intel | -11 -10 -10 -10 -9 -8 -8 -8 -8 -7 -7 -6 -6 -6 -5 -5 -5 -5 -4 -4 -4 -4 ------- Run | Yrd Mat Min Exi Min Mat Gar Mat Sto Fac Gar Fac Was Fac Fac Gar Fac Ext Fac Was Fac Gar Active Infowar (turns) 5186 | 1 986 . . . 261 . . . 52 172 17 . . . . . 848 869 829 433 718 Optics 2701 | . . . . . 261 . . . . . . . . . . . . 460 829 433 718 Seismic 987 | 1 986 . . . . . . . . . . . . . . . . . . . . Jamming 1571 | . . . . . . . . . 52 172 17 . . . . . 848 482 . . . ECM 1 | . . . . . . . . . . . . . . . . . . . . 1 . Robot Analysis Total . | . . . . . . . . . . . . . . . . . . . . . . Derelict Logs Recovered 1 | . . . . 1 . . . . . . . . . . . . . . . . . Drone Launches 3 | . . . . . . . . . 2 . . . . . . . . . . . 1 Drone Recoveries 3 | . . . . . . . . . 2 . . . . . . . . . . . 1 Exploration | -11 -10 -10 -10 -9 -8 -8 -8 -8 -7 -7 -6 -6 -6 -5 -5 -5 -5 -4 -4 -4 -4 ------------- Run | Yrd Mat Min Exi Min Mat Gar Mat Sto Fac Gar Fac Was Fac Fac Gar Fac Ext Fac Was Fac Gar Turns Passed 20138 | 191 1313 319 430 358 1172 1032 294 923 396 1961 68 335 2229 210 2476 1796 1686 950 829 433 737 Spaces Moved 8763 | 93 641 180 341 215 727 539 198 588 131 619 39 141 1030 114 855 652 614 391 320 144 191 Core 28 | 17 . . . . . . . . . . . . . . . . . 1 . . 10 Treads 4124 | 76 348 7 . . 12 . . . . 81 . 94 288 114 855 652 614 390 320 144 129 Legs 255 | . . . . . . . . . . 203 . . . . . . . . . . 52 Wheels 4356 | . 293 173 341 215 715 539 198 588 131 335 39 47 742 . . . . . . . . Hover . | . . . . . . . . . . . . . . . . . . . . . . Flight . | . . . . . . . . . . . . . . . . . . . . . . Fastest Speed 50 | 50 110 110 115 130 120 105 120 116 116 116 135 135 125 160 160 240 160 160 240 160 50 Average Speed 178 | 139 158 119 123 131 126 121 120 126 125 221 135 205 188 164 228 240 194 178 240 232 263 Slowest Speed 2500 | 160 240 320 130 145 320 135 120 150 131 890 135 240 240 240 240 240 240 2500 245 240 1600 Overloaded Moves . | . . . . . . . . . . . . . . . . . . . . . . Propulsion Burnouts . | . . . . . . . . . . . . . . . . . . . . . . Robots Hopped . | . . . . . . . . . . . . . . . . . . . . . . Potential Cave-ins . | . . . . . . . . . . . . . . . . . . . . . . Cave-ins Triggered 1 | . . . . . . . . . . . . . . . . . 1 . . . . Exploration Rate (%) 43 | 8 84 33 68 42 59 67 18 86 11 62 2 73 27 5 65 12 78 12 100 9 31 Regions Visited 21 Branch Regions 5 Pre-discovered Areas 5 | . 2 . 1 1 . . . . . . . . . . . . 1 . . . . Known Exits Taken 7 | . . . . . 1 . 1 1 1 . . . . 1 . 1 . . . 1 . Unknown Exits Taken 7 | 1 1 1 1 1 . . . . . . . . 1 . . . 1 . . . . Scrap Searched 1 | . . . . 1 . . . . . . . . . . . . . . . . . Spaces Dug 12 | . . . . . . . . . 2 1 . . . . . . . . 9 . . Terrain Destroyed 535 | . . . . . 8 100 3 6 2 3 . . 108 . . 23 213 36 12 13 8 Melee . | . . . . . . . . . . . . . . . . . . . . . . Projectile 102 | . . . . . . 1 . . 2 3 . . 23 . . 6 24 10 12 13 8 AOE 433 | . . . . . 8 99 3 6 . . . . 85 . . 17 189 26 . . . Terrain Rammed . | . . . . . . . . . . . . . . . . . . . . . . Walls Destroyed . | . . . . . . . . . . . . . . . . . . . . . . Machines Disabled . | . . . . . . . . . . . . . . . . . . . . . . Actions | -11 -10 -10 -10 -9 -8 -8 -8 -8 -7 -7 -6 -6 -6 -5 -5 -5 -5 -4 -4 -4 -4 --------- Run | Yrd Mat Min Exi Min Mat Gar Mat Sto Fac Gar Fac Was Fac Fac Gar Fac Ext Fac Was Fac Gar Total 11953 | 127 821 249 350 292 916 801 247 720 340 1040 47 182 1235 135 1179 846 967 550 360 203 346 Wait 1174 | . 73 31 . 56 50 91 11 35 170 203 . . 64 7 23 139 155 40 . 2 24 Move 8748 | 92 640 179 340 214 727 538 197 587 131 618 39 140 1029 114 854 651 613 391 319 144 191 Hop . | . . . . . . . . . . . . . . . . . . . . . . Pick Up 315 | 13 21 9 6 8 34 23 7 12 8 32 . 10 19 2 38 8 12 18 4 5 26 Fast Attach 67 | . . . . 2 10 . 3 9 1 9 . 2 11 . 2 1 4 8 1 4 . Attach 197 | 7 5 5 2 1 12 21 2 2 3 23 1 4 12 4 26 3 15 8 4 8 29 Detach 25 | . . . . . 1 4 . . . 2 . 1 1 1 4 . 4 . 2 3 2 Swap 111 | . 3 1 . 4 4 9 1 7 7 11 . . 12 . 14 6 17 9 . 4 2 Drop 268 | . 12 3 2 7 34 17 12 18 8 25 . 15 25 3 25 8 12 22 7 9 4 Fire 1028 | 15 67 21 . . 40 92 14 50 12 117 7 10 62 2 192 30 134 54 23 24 62 Melee . | . . . . . . . . . . . . . . . . . . . . . . Ram . | . . . . . . . . . . . . . . . . . . . . . . Kick . | . . . . . . . . . . . . . . . . . . . . . . Crush 3 | . . . . . . . . . . . . . . 2 . . 1 . . . . Escape Stasis 3 | . . . . . . . . . . . . . . . . . . . . . 3 Rewire 7 | . . . . . . 6 . . . . . . . . 1 . . . . . . Trap 7 | . . . . . 4 . . . . . . . . . . . . . . . 3 Miscellaneous . | . . . . . . . . . . . . . . . . . . . . . . Route ------- -11/Scrapyard -10/Materials (discovered 6 exits: *Mat x3 / *Min x2 / [*Sub]) -10/Mines -10/Exiles -9/Mines -8/Materials (discovered 3 exits: Fac / *Sto / Gar) -8/Garrison (discovered 3 exits: *Mat x3) -8/Materials -8/Storage (discovered 2 exits: *Fac / Rec) -7/Factory -7/Garrison -6/Factory -6/Waste -6/Factory (discovered 3 exits: *Fac x2 / *Low) -5/Factory -5/Garrison (discovered 3 exits: *Fac x3) -5/Factory (discovered 2 exits: *Upp / *Ext) -5/Extension (discovered 2 exits: *Fac / [*Cet]) -4/Factory -4/Waste -4/Factory -4/Garrison History --------- Turn | Location | Event 9 | -11/Scrapyard | Discovered new exit (range 16) 192 | -11/Scrapyard | Entered Materials 247 | -10/Materials | Discovered new exit (range 14) 307 | -10/Materials | Build established: Mutant 658 | -10/Materials | Discovered new exit (range 13) 1075 | -10/Materials | Discovered new exit (range 11) 1273 | -10/Materials | Discovered new exit (range 14) 1363 | -10/Materials | Discovered new exit (range 3) 1482 | -10/Materials | Identified exit to Materials 1482 | -10/Materials | Learned location of 1 exit from Materials 1505 | -10/Materials | Entered Mines 1585 | -10/Mines | Assembled infested the area 1617 | -10/Mines | Met a Derelict who couldn't figure out how to use a Trap Extractor 1669 | -10/Mines | Core integrity fell below 50% 1709 | -10/Mines | Lost 3 parts (2n1w) 1789 | -10/Mines | Found a Scrap Suit stashed away for nefarious purposes 1800 | -10/Mines | Found Scrap Suit 1819 | -10/Mines | Deemed a non-threat by the Exiles lab entrance 1819 | -10/Mines | Discovered new exit (range 5) 1824 | -10/Mines | Entered Exiles 1857 | -10/Exiles | Met 8R-AWN 1874 | -10/Exiles | Met EX-HEX 1929 | -10/Exiles | Met EX-DEC 1948 | -10/Exiles | Learned location of Zion (-6) 2053 | -10/Exiles | Build established: Scavenger-Mutant 2068 | -10/Exiles | Met EX-BIN 2086 | -10/Exiles | Aligned with FarCom system 2087 | -10/Exiles | Given EX-Vault access code 2117 | -10/Exiles | Opened EX-Vault 2125 | -10/Exiles | Found Gui. Plasma Cannon 2127 | -10/Exiles | Found Firepult 2133 | -10/Exiles | Found Supersonic Drone Bay 2162 | -10/Exiles | Warned to stay clear of 0b10 Research branches 2240 | -10/Exiles | Discovered new exit (range 14) 2254 | -10/Exiles | Stole three prototypes: Supersonic Drone Bay, Gui. Plasma Cannon, Firepult 2254 | -10/Exiles | Entered Mines 2269 | -9/Mines | Met a Derelict bent on vengeance 2337 | -9/Mines | Assisted by bots powering up and referring to "LRC-V3" 2363 | -9/Mines | Found a hidden stash of uninstalled traps 2469 | -9/Mines | Discovered new exit (range 9) 2534 | -9/Mines | System corruption reached 10% 2612 | -9/Mines | Entered Materials 2612 | -8/Materials | Accompanied by 3 allies 2612 | -8/Materials | Evolved 4 slots: Propulsion x1, Utility x3 2613 | -8/Materials | Identified exit to Factory 2680 | -8/Materials | Build established: Trapper-Mutant 2893 | -8/Materials | Discovered new exit (range 9) 3017 | -8/Materials | Lost 4 parts (1p2n1u) 3274 | -8/Materials | Build established: Mutant 3398 | -8/Materials | Identified exit to Storage 3784 | -8/Materials | Identified exit to Garrison 3784 | -8/Materials | Entered Garrison 3826 | -8/Garrison | Triggered checkpoint 3878 | -8/Garrison | Core integrity fell below 50% 3977 | -8/Garrison | Triggered checkpoint 3977 | -8/Garrison | Triggered checkpoint 4080 | -8/Garrison | Discovered new exit (range 15) 4175 | -8/Garrison | Discovered new exit (range 79) 4175 | -8/Garrison | Discovered new exit (range 64) 4175 | -8/Garrison | Discovered new exit (range 14) 4282 | -8/Garrison | Triggered checkpoint 4411 | -8/Garrison | Triggered checkpoint 4466 | -8/Garrison | Triggered checkpoint 4528 | -8/Garrison | Lost 3 parts (2u1w) 4554 | -8/Garrison | Installed Relay Interface Framework 4566 | -8/Garrison | Triggered checkpoint 4600 | -8/Garrison | Garrison Relay disabled 4778 | -8/Garrison | Phase Generator disabled 4816 | -8/Garrison | Entered Materials 4816 | -8/Materials | Accompanied by 2 allies 4859 | -8/Materials | Build established: Bothacker-Mutant 5090 | -8/Materials | Discovered exit to Storage (range 10) 5110 | -8/Materials | Entered Storage 5110 | -8/Storage | Accompanied by 1 ally 5112 | -8/Storage | FarCom data flow suspended 5285 | -8/Storage | Identified exit to Recycling 5518 | -8/Storage | Assisted by bots powering up and referring to "LRC-V3" 5694 | -8/Storage | Lost 3 allies 5987 | -8/Storage | Discovered exit to Factory (range 16) 6033 | -8/Storage | Entered Factory 6033 | -7/Factory | Accompanied by 3 allies 6033 | -7/Factory | Evolved 2 slots: Utility x1, Weapon x1 6354 | -7/Factory | Build established: Tank 6429 | -7/Factory | Identified exit to Garrison 6429 | -7/Factory | Entered Garrison 6505 | -7/Garrison | Triggered checkpoint 6566 | -7/Garrison | Found embedded Infiltrators 6581 | -7/Garrison | Garrison Relay disabled 6586 | -7/Garrison | Lost 4 parts (1n3u) 6892 | -7/Garrison | Build established: Bothacker-Tank 6951 | -7/Garrison | Triggered checkpoint 6959 | -7/Garrison | Triggered checkpoint 6961 | -7/Garrison | Triggered checkpoint 7023 | -7/Garrison | Triggered checkpoint 7023 | -7/Garrison | Lost 5 allies 7344 | -7/Garrison | Lost 3 allies 7419 | -7/Garrison | Spotted B-75 Beast 7461 | -7/Garrison | Destroyed B-75 Beast 7488 | -7/Garrison | Lost 6 parts (1p2n3w) 7560 | -7/Garrison | Discovered new exit (range 13) 7601 | -7/Garrison | Triggered checkpoint 7645 | -7/Garrison | Garrison Relay disabled 7725 | -7/Garrison | Build established: Bothacker-Mutant 7734 | -7/Garrison | Expanded RIF knowledge: Threat Obfuscation 8258 | -7/Garrison | Build established: Bothacker-Tank 8390 | -7/Garrison | Entered Factory 8390 | -6/Factory | Accompanied by 1 ally 8390 | -6/Factory | Evolved 2 slots: Power x1, Utility x1 8404 | -6/Factory | Discovered new exit (range 15) 8458 | -6/Factory | Sucked down chute 8458 | -6/Factory | Entered Waste 8473 | -6/Waste | EMP discharged 8508 | -6/Waste | Spotted C-40 Crusher 8527 | -6/Waste | Destroyed C-40 Crusher 8533 | -6/Waste | Spotted C-40 Crusher 8539 | -6/Waste | Destroyed C-40 Crusher 8551 | -6/Waste | Spotted C-40 Crusher 8561 | -6/Waste | Destroyed C-40 Crusher 8573 | -6/Waste | EMP discharged 8573 | -6/Waste | System corruption reached 10% 8587 | -6/Waste | Found Damper Plating 8592 | -6/Waste | Spotted C-40 Crusher 8598 | -6/Waste | Destroyed C-40 Crusher 8622 | -6/Waste | Spotted C-40 Crusher 8630 | -6/Waste | Destroyed C-40 Crusher 8673 | -6/Waste | EMP discharged 8701 | -6/Waste | Discovered new exit (range 13) 8714 | -6/Waste | Spotted C-40 Crusher 8717 | -6/Waste | Destroyed C-40 Crusher 8773 | -6/Waste | EMP discharged 8793 | -6/Waste | Entered Factory 8980 | -6/Factory | Fabricated L-31 Rogue? 9075 | -6/Factory | System corruption reached 30% 9756 | -6/Factory | Discovered new exit (range 8) 10020 | -6/Factory | Build established: Pyromaniac-Tank 10430 | -6/Factory | Discovered new exit (range 17) 10562 | -6/Factory | Identified exit to Lower Caves 10995 | -6/Factory | Discovered new exit (range 16) 11022 | -6/Factory | Entered another Factory area 11022 | -5/Factory | Evolved 2 slots: Propulsion x1, Utility x1 11232 | -5/Factory | Identified exit to Garrison 11232 | -5/Factory | Entered Garrison 11282 | -5/Garrison | Triggered checkpoint 11328 | -5/Garrison | Garrison Relay disabled 11434 | -5/Garrison | Triggered checkpoint 11453 | -5/Garrison | Triggered checkpoint 11580 | -5/Garrison | Triggered checkpoint 11632 | -5/Garrison | Garrison Relay disabled 11730 | -5/Garrison | Discovered new exit (range 12) 11868 | -5/Garrison | Triggered checkpoint 11899 | -5/Garrison | Build established: Scavenger-Tank 12274 | -5/Garrison | Build established: Bothacker-Tank 12859 | -5/Garrison | Discovered new exit (range 16) 12972 | -5/Garrison | Build established: Scavenger-Tank 13047 | -5/Garrison | Expanded RIF knowledge: Patrol Navigation 13273 | -5/Garrison | Found Relay Coupler [Proto] 13277 | -5/Garrison | Found Relay Coupler [Proto] 13280 | -5/Garrison | Found Relay Coupler [Proto] 13283 | -5/Garrison | Found Relay Coupler [Proto] 13505 | -5/Garrison | Discovered new exit (range 10) 13568 | -5/Garrison | Build established: Bothacker-Tank 13594 | -5/Garrison | Expanded RIF knowledge: Watcher Feeds 13708 | -5/Garrison | Entered Factory 13905 | -5/Factory | Build established: Botlord-Tank 13994 | -5/Factory | Fabricated Enh. Quantum Rifle? 14237 | -5/Factory | Discovered new exit (range 14) 14455 | -5/Factory | Identified exit to Upper Caves 15488 | -5/Factory | Discovered new exit (range 6) 15495 | -5/Factory | Identified exit to Extension 15504 | -5/Factory | Entered Extension 15504 | -5/Extension | Accompanied by 2 allies 15676 | -5/Extension | Lost 3 allies 15822 | -5/Extension | Lost 3 allies 15848 | -5/Extension | Destroyed 8 combat bots 16240 | -5/Extension | Spotted B-75 Beast 16244 | -5/Extension | Rescued A7 16284 | -5/Extension | Lost 3 allies 16313 | -5/Extension | Allies destroyed B-75 Beast 16338 | -5/Extension | Spotted B-75 Beast 16340 | -5/Extension | Assimilated Beast 6a with formatsys_high 16404 | -5/Extension | Disrupted transfer network 16618 | -5/Extension | Build established: Bothacker-Tank 16651 | -5/Extension | Rescued a captive Derelict 16653 | -5/Extension | Rescued a captive Derelict 16722 | -5/Extension | Rescued a captive Derelict 16905 | -5/Extension | Energy Cycler disabled 16973 | -5/Extension | Discovered new exit (range 10) 16976 | -5/Extension | Discovered new exit (range 7) 17086 | -5/Extension | Crushed by falling debris 17091 | -5/Extension | Extracted ID and sensor layout for unrecognized location from A7's data core 17103 | -5/Extension | Found Prototype Protection 17103 | -5/Extension | Identified Med. Regenerative Plating 17119 | -5/Extension | Disrupted transfer network 17125 | -5/Extension | Lost 3 allies 17152 | -5/Extension | Destroyed 7 combat bots 17190 | -5/Extension | Entered Factory 17190 | -4/Factory | Accompanied by 2 allies 17190 | -4/Factory | Evolved 2 slots: Utility x2 17527 | -4/Factory | Found Prototype Device 17528 | -4/Factory | Fabricated D-63 Destroyer? 17528 | -4/Factory | Identified Adv. EM Shield 17534 | -4/Factory | Found Adv. EM Shield 17990 | -4/Factory | Lost 3 parts (1p1n1w) 18140 | -4/Factory | Sucked down chute 18140 | -4/Factory | Entered Waste 18155 | -4/Waste | EMP discharged 18170 | -4/Waste | Spotted C-40 Crusher 18181 | -4/Waste | Destroyed C-40 Crusher 18200 | -4/Waste | Spotted C-40 Crusher 18221 | -4/Waste | Found Damper Plating 18239 | -4/Waste | Destroyed C-40 Crusher 18255 | -4/Waste | EMP discharged 18265 | -4/Waste | Spotted C-40 Crusher 18270 | -4/Waste | Destroyed C-40 Crusher 18276 | -4/Waste | Spotted C-40 Crusher 18279 | -4/Waste | Destroyed C-40 Crusher 18324 | -4/Waste | Spotted C-40 Crusher 18327 | -4/Waste | Spotted C-40 Crusher 18331 | -4/Waste | Destroyed C-40 Crusher 18333 | -4/Waste | Destroyed C-40 Crusher 18355 | -4/Waste | EMP discharged 18355 | -4/Waste | System corruption reached 10% 18419 | -4/Waste | Discovered new exit (range 12) 18455 | -4/Waste | EMP discharged 18518 | -4/Waste | Build established: Scavenger-Tank 18555 | -4/Waste | EMP discharged 18655 | -4/Waste | EMP discharged 18755 | -4/Waste | EMP discharged 18855 | -4/Waste | EMP discharged 18955 | -4/Waste | EMP discharged 18969 | -4/Waste | Entered Factory 19162 | -4/Factory | Found Prototype Device 19162 | -4/Factory | Identified Exp. ECM Suite 19402 | -4/Factory | Identified exit to Garrison 19402 | -4/Factory | Entered Garrison 19425 | -4/Garrison | Lost 10 parts (2p2n4u2w) 19634 | -4/Garrison | Triggered checkpoint 19673 | -4/Garrison | Build established: Scavenger-Mutant 19683 | -4/Garrison | Lost 3 parts (1n1u1w) 19690 | -4/Garrison | System corruption reached 30% 19768 | -4/Garrison | Garrison Relay disabled 19840 | -4/Garrison | Core integrity fell below 50% 19902 | -4/Garrison | Lost 12 parts (2p2n5u3w) 20027 | -4/Garrison | Spotted B-86 Titan 20060 | -4/Garrison | Core integrity fell below 20% 20075 | -4/Garrison | Destroyed B-86 Titan 20119 | -4/Garrison | Found Hvy. Reflective Plating 20123 | -4/Garrison | Triggered checkpoint 20132 | -4/Garrison | Released all parts (12) 20139 | -4/Garrison | Destroyed by G-67 Veteran with Field Laser Last Messages --------------- 20132_ Released Hvy. Reflective Plating. 20132_ Released Lgt. Antimatter Reactor. 20132_ Released Imp. Core Shielding. 20132_ Released Huge Storage Unit. 20132_ Released Graphene Brace. 20132_ Released Armor Integrity Analyzer. 20132_ Released Energy Well. 20132_ Released Myomer Leg. 20132_ Released Flexi-carbon Leg. 20132_ Released Adv. Power Amplifier. 20132_ Released Adv. Heat Sink. 20133_ Dropped Adv. EM Shield. 20133_ Critical hit (Burn: +50). 20133_ Acquired Adv. Gravity Neutralizer. 20136_ Triggered Stasis Trap. 20136_ A bubble of rippling energy engulfs the area. 20136_ Field strength at 94. 20136_ Field strength at 88. 20137_ Field strength at 78. 20138_ Field strength at 72. Map ----- +----------------------------------------------------+ | ?????????????????????????????????????????????????? | | ?????????????????????????????????????????????????? | | ?????????????????????????????????????????????????? | | ?????????????????????????????????????????????????? | | ?????????????????????????????????????????????????? | | ?????????????????????????????????????????????????? | | ?????????????????????????????????????????????????? | | ??????????????????????????????????? ?????????????? | | ?????????????????????????????????? #????????????? | | ?????????????????????????????????? #????????????? | | ??????????????????????######""""## ##???????????? | | ????????????????????### #???????????? | | ???????????????????? #???????????? | | ????????????????????? ? #???????????? | | ??????????????????????# ?# ## #???????????? | | ????????????????????### ## ## ###?????????? | | ????????????????????# #?????????? | | ????????????????????# #?????????? | | ????????????????????# #?????????? | | ????????????????????? ??????????? | | ??????????????????????# gg## ## #??????###??? | | ??????????????????????# ##g!!*!# ########"###? | | ??????????????????????# !!s%= *%[ #? | | ??????????????????????# s=!!=*!= = #? | | ??????????????????????# s!! !!! #? | | ??????????????????????## @##=!=|# ######### #? | | ???????????????????????# ## # # ## #??#% #? | | ???????????????????????# ####### = ## #### #? | | ???????????????????????# #?????## %" ## ## # #? | | ???????????????????????# #??????# ## # #?#"^^^## | | ???????????????????????# #??????#% #?## #### % "# | | ???????????????????????# #??????# #### #"#" "# | | ???????????????????????# #??????# /= !% " % | | ??????????????????????? #??????# % [ " | | ??????????????????????? ???????############ " | | ???????????????????????###??????????????????# ## | | ????????????????????????????????????????????# #? | | ????????????????????????????????????????????# #? | | ????????????????????????????????????????????# #? | | ????????????????????????????????????????????# #? | | ????????????????????????????????????????????# #? | | ????????????????????????????????????????????# #? | | ????????????????????????????????????????????# #? | | ????????????????????????????????????????????# #? | | ????????????????????????????????????????????# #? | | ????????????????????????????????????????????# #? | | ????????????????????????????????????????????# #? | | ????????????????????????????????????????????# #? | | ????????????????????????????????????????????# #? | | ????????????????????????????????????????????# #? | +----------------------------------------------------+ Best States ------------- Heat Dissipation 157 Coolant Potential 65 Energy Generation 46 Energy Capacity 590 Matter Stores 300 Matter Capacity 300 Sight Range 20 Terrain Scan Density 10 Jamming Range 12 Power Amplification 30 Base Temperature (-) 200 Corruption Containment 8 Armor Coverage 3200 Resistance: KI 25 Resistance: TH 25 Resistance: EM 90 Core Shielding 30 Propulsion Shielding 90 Utility Shielding 66 Evasion (%) 50 Targeting Accuracy 6 Armor Integrity Analysis 30 Recoil Reduction 4 Matter Filtering 50 Salvage Targeting 2 Offensive Hacking 12 Relay Coupler Types 2 Relay Coupler Value 67 Authchip Count 10 Trap Extractor Capacity 6 Item Schematics ----------------- Flight Unit | -8/Materials | Hacked Adv. Terrain Scanner | -6/Factory | Extracted IFF Parser | -6/Factory | Extracted Med. Storage Unit | -6/Factory | Extracted Imp. Heavy Armor Plating | -6/Factory | Extracted Actuator Array | -6/Factory | Extracted Imp. Cryofiber Web | -6/Factory | Extracted Prc. Rocket Launcher | -6/Factory | Extracted Adv. Cryofiber Web | -5/Extension | Hacked Imp. Light Armor Plating | -4/Factory | Extracted Hcp. Storage Unit | -4/Factory | Extracted Graphene Brace | -4/Factory | Extracted ECM Suite | -4/Factory | Extracted Hpw. Shock Rifle | -4/Factory | Extracted Stasis Canceller | -4/Factory | Extracted Adv. Drone Bay | -4/Factory | Extracted Robot Schematics ------------------ L-31 Rogue | -8/Storage | Hacked D-63 Destroyer | -5/Factory | Hacked Fabricated ------------ L-31 Rogue | x3 | -6/Factory | Authchip Enh. Quantum Rifle | x2 | -5/Factory | Preloaded D-63 Destroyer | x1 | -4/Factory | Authchip Repaired ---------- Nothing Alien Tech Used ----------------- None Achievements -------------- Pyromaniac Challenges ------------ None Game ------ Seed FieldthrustChipProtection Manual? 0 Play Time 02:35:44 Cumulative 332.2 hours Start 2025.09.28 @ 02:49:42 End 2025.09.29 @ 02:53:02 Sessions 5 Manual Loads 0 Difficulty Rogue Special Mode None Game No. 445 Rogue 445 Adventurer 0 Explorer 0 Win Type - Total 11 Types 6/0/1/2/1/0/1/0/0/0 Lore% 86 Gallery% 82 Achievement% 68 Wizard Run 0 Options --------- Layout 0 ASCII 0 Keyboard 0 Movement Mouse Keybinds 0 Fullscreen 1 Font 18/SmallcapsGlow Map View 76x50 Zoom Use 0% Tactical HUD 1 Map Filters NONE Filters NONE Steam 1 RUN: 8451c129-e613-4c09-9a39-ca2b543f72e9